Cogmind - Beta 13 @@@ ROGUE MODE // 2024.04.03 @ 05:07:11 Player: Medak Result: Destroyed by G-47 Trooper with Particle Gun Performance ------------- Evolutions (0) 0 Regions Visited (1) 200 Robots Destroyed (16) 80 Value Destroyed (398) 398 Prototype IDs (2) 40 Alien Tech Used (0) 0 Bonus (0) 0 TOTAL SCORE: 718 Bonus ------- None Cogmind --------- Core Integrity 0/250 Matter 249/300 Energy 248/250 System Corruption 0% Temperature Cool (27) Movement Core (1450) Ox28 Location -10/Materials Parts ------- > --- POWER (1) -------- Ion Engine > --- PROPULSION (2) --- (None) > --- UTILITY (2) ------ Huge Storage Unit > --- WEAPON (2) ------- Light Assault Rifle Light Assault Rifle > --- INVENTORY (25) --- Grenade Launcher Welding Torch Peak State ------------ > --- POWER ------------ Light Ion Engine > --- PROPULSION ------- Wheel Wheel > --- UTILITY ---------- Heat Sink Signal Interpreter > --- WEAPON ----------- Assault Rifle Light Assault Rifle > --- INVENTORY -------- Signal Interpreter [Rating: 7] Favorites ----------- Power Light Ion Engine Engine Light Ion Engine Propulsion Wheel Wheel Wheel Utility Medium Storage Unit Device Heat Sink Storage Medium Storage Unit Processor Targeting Computer Protection Light Armor Plating Weapon Light Assault Rifle Ballistic Gun Light Assault Rifle Special Weapon Welding Torch Build | -11 -10 ------- Run | Yrd Mat Slots Evolved . | . . Power . | . . Propulsion . | . . Utility . | . . Weapon . | . . Parts Attached 21 | 6 15 Power 4 | 1 3 Engine 4 | 1 3 Core . | . . Reactor . | . . Propulsion 4 | 2 2 Treads . | . . Leg . | . . Wheel 4 | 2 2 Hover . | . . Flight . | . . Utility 8 | 1 7 Device 2 | 1 1 Storage 2 | . 2 Processor 3 | . 3 Hackware . | . . Protection 1 | . 1 Artifact . | . . Weapon 5 | 2 3 Energy Gun . | . . Energy Cannon . | . . Ballistic Gun 4 | 2 2 Ballistic Cannon . | . . Launcher . | . . Special Weapon 1 | . 1 Impact Weapon . | . . Slashing Weapon . | . . Piercing Weapon . | . . Special Melee Weapon . | . . Unidentified Prototypes . | . . Parts Lost 7 | . 7 Power 1 | . 1 Propulsion 4 | . 4 Utility 1 | . 1 Weapon 1 | . 1 Highest Loss Streak 4 | . 4 To Critical Strikes . | . . Average Slot Usage (%) 88 | . 88 Engine 12 | . 12 Wheel 24 | . 24 Device 1 | . 1 Storage 10 | . 10 Processor 11 | . 11 Protection 1 | . 1 Ballistic Gun 24 | . 24 Naked Turns . | . . Heaviest Build 90 | 7 90 Greatest Support 20 | 20 20 Greatest Overweight (x) 5 | . 5 Average Overweight (x) . | . . Largest Inventory Capacity 25 | 5 25 Average Capacity 9 | 5 10 Most Carried 5 | 3 5 Average Carried 2 | 1 2 Final Capacity 25 | 5 25 Final Carried 2 | 2 2 Class Distribution -------------------- 100% | Mutant Dominant Class ---------------- Mutant | -10/Materials Resources | -11 -10 ----------- Run | Yrd Mat Matter Collected 516 | 276 240 Remotely . | . . Salvage Created 555 | 64 491 Parts 41 | 4 37 Haulers Intercepted 1 | . 1 Recyclers Shooed . | . . Parts Field Recycled . | . . Retrieved Matter . | . . Parts Self-Destructed . | . . Prevented . | . . Kills | -11 -10 ------- Run | Yrd Mat Combat Hostiles Destroyed 10 | 1 9 Guns 10 | 1 9 Classes Destroyed 6 | 2 4 Worker 2 | 1 1 Builder 1 | . 1 Tunneler 1 | . 1 Hauler 1 | . 1 Watcher 1 | . 1 Grunt 10 | 1 9 Best Kill Streak 5 | 1 5 Combat Bots Only 2 | 1 2 Max Kills in Single Turn 1 | 1 1 Gunslinging . | . . Exploded . | . . Melee . | . . Uniques/NPCs Destroyed . | . . Combat | -11 -10 -------- Run | Yrd Mat Hostile Shots Fired 92 | 4 88 Missed 23 | 3 20 Damage Taken 885 | 10 875 Core 253 | 10 243 Absorbed by Shields . | . . Core Remaining (%) 96 | 96 . Volleys Fired 72 | 4 68 Largest 2 | 2 2 Hottest 40 | 40 40 Shots Fired 124 | 8 116 Gun 124 | 8 116 Cannon . | . . Launcher . | . . Special . | . . Kinetic 124 | 8 116 Thermal . | . . Explosive . | . . Electromagnetic . | . . Robot Hit Streak 12 | 2 12 Robot Miss Streak 5 | 2 5 Penetration Max . | . . Secondary Targets 3 | . 3 Max Gunslinging Chain 1 | . 1 Shots Hit Robots 80 | 4 76 Core Hits 34 | 3 31 Critical Kills . | . . Critical Parts Destroyed . | . . Critical Strikes . | . . Melee Attacks . | . . Impact . | . . Slashing . | . . Piercing . | . . Sneak Attacks . | . . Combat Hostiles . | . . Follow-up Attacks . | . . Damage Inflicted 793 | 43 750 Guns 773 | 43 730 Cannons . | . . Explosions . | . . Melee . | . . Ramming 20 | . 20 Kinetic 773 | 43 730 Thermal . | . . Explosive . | . . Electromagnetic . | . . Impact . | . . Slashing . | . . Piercing . | . . Highest Corruption . | . . Average Corruption . | . . Corruption Purged . | . . Corruption Blocked . | . . Overload Shots . | . . Overflow Damage . | . . Projectiles . | . . Explosions . | . . Melee . | . . Knockbacks . | . . Impact . | . . Kinetic . | . . Secondary . | . . Self-Inflicted Damage 9 | . 9 Shots . | . . Rammed 2 | . 2 Targets Rammed 2 | . 2 Kicked . | . . Crushed . | . . Highest Temperature 62 | 6 62 Average Temperature 20 | 6 20 Received Heat Transfer 525 | 6 519 Siege Activations . | . . Robots Corrupted . | . . Combat Hostiles . | . . Parts Fried . | . . Impact Corruptions . | . . Robots Melted . | . . Combat Hostiles . | . . Parts Melted . | . . Heat Transferred . | . . Parts Sabotaged . | . . Parts Stolen . | . . Parts Stripped . | . . Power Chain Reactions . | . . Alert | -11 -10 ------- Run | Yrd Mat Peak Influence 155 | 25 155 Initial 16 | . 16 Average 67 | 4 76 Maximum Alert Level . | . . Low Security (%) 100 | 100 100 Level 1 . | . . Level 2 . | . . Level 3 . | . . Level 4 . | . . Level 5 . | . . High Security . | . . Max Security . | . . Squads Dispatched 4 | . 4 Investigation 2 | . 2 Extermination . | . . Reinforcement 2 | . 2 Assault . | . . Garrison . | . . Intercept . | . . Searches Triggered . | . . Construction Impeded . | . . Haulers Reinforced . | . . Active Scanning Responses . | . . Cargo Convoy Interrupts . | . . Stealth | -11 -10 --------- Run | Yrd Mat Distress Signals 2 | . 2 Communications Jammed . | . . Distress Signals . | . . Times Spotted 24 | 1 23 Peak Tracking Total 5 | 1 5 Tactical Retreats . | . . Traps | -11 -10 ------- Run | Yrd Mat Traps Triggered 2 | . 2 Indirectly . | . . Trap Hack Attempts . | . . Triggered . | . . Disarmed . | . . Reprogrammed . | . . Reused . | . . Traps Extracted . | . . Installed . | . . Triggered . | . . Machines | -11 -10 ---------- Run | Yrd Mat Machines Disabled . | . . Max in Single Turn . | . . Machines Repaired . | . . Machines Dismantled . | . . Machines Sabotaged . | . . Overloaded Fab Kills . | . . Hacking | -11 -10 --------- Run | Yrd Mat Machines Accessed 2 | . 2 Terminals 2 | . 2 Fabricators . | . . Repair Stations . | . . Recycling Units . | . . Scanalyzers . | . . Garrison Access . | . . Total Hacks 7 | . 7 Successful 5 | . 5 Failed 2 | . 2 Catastrophic . | . . Database Lockouts . | . . Manual . | . . Terminals 7 | . 7 Fabricators . | . . Repair Stations . | . . Recycling Units . | . . Scanalyzers . | . . Garrison Access . | . . Terminal Hacks 5 | . 5 Prototype ID Bank 1 | . 1 Alert Level 2 | . 2 Locate Traps 1 | . 1 Transport Status 1 | . 1 Fabricator Hacks . | . . Repair Station Hacks . | . . Recycling Unit Hacks . | . . Scanalyzer . | . . Garrison Access Hacks . | . . Unauthorized Hacks . | . . Terminals . | . . Fabricators . | . . Repair Stations . | . . Recycling Units . | . . Scanalyzers . | . . Garrison Access . | . . Data Cores Recovered . | . . Used . | . . Hacking Detections 1 | . 1 Full Trace Events . | . . Feedback Events . | . . Feedback Blocked . | . . Robot Schematics Acquired . | . . Robots Built . | . . Authchips . | . . Time . | . . Total Robot Build Rating . | . . Part Schematics Acquired . | . . Parts Built . | . . Authchips . | . . Time . | . . Total Part Build Rating . | . . Parts Repaired . | . . Time . | . . Parts Recycled . | . . Recycled Matter . | . . Retrieved Matter . | . . Retrieved Components . | . . Parts Scanalyzed . | . . Part Schematics Acquired . | . . Parts Damaged . | . . Bothacking | -11 -10 ------------ Run | Yrd Mat Used RIF Installer . | . . Robots Hacked . | . . Non-combat . | . . Combat . | . . Robot Hacks Applied . | . . Relay Couplers Released . | . . Fabnet Peak Effective % . | . . Robots Rewired . | . . Allies Hacked . | . . Hacks Repelled . | . . Allies | -11 -10 -------- Run | Yrd Mat Total Allies . | . . Largest Group . | . . Highest-Rated Group . | . . Highest-Rated Ally . | . . Total Orders . | . . Ally Attacks . | . . Total Damage . | . . Kills . | . . Allies Corrupted . | . . Allies Melted . | . . Intel | -11 -10 ------- Run | Yrd Mat Robot Analysis Total . | . . Derelict Logs Recovered . | . . Drone Launches . | . . Drone Recoveries . | . . Exploration | -11 -10 ------------- Run | Yrd Mat Turns Passed 833 | 107 726 Spaces Moved 683 | 113 570 Core 63 | 45 18 Treads . | . . Legs . | . . Wheels 620 | 68 552 Hover . | . . Flight . | . . Fastest Speed 50 | 50 80 Average Speed 81 | 68 84 Slowest Speed 300 | 80 300 Overloaded Moves . | . . Propulsion Burnouts . | . . Robots Hopped . | . . Cave-ins Triggered . | . . Exploration Rate (%) 34 | 7 62 Regions Visited 1 Branch Regions . Pre-discovered Areas . | . . Known Exits Taken . | . . Unknown Exits Taken 1 | 1 . Scrap Searched . | . . Spaces Dug . | . . Terrain Destroyed . | . . Melee . | . . Projectile . | . . AOE . | . . Terrain Rammed . | . . Walls Destroyed . | . . Machines Disabled . | . . Actions | -11 -10 --------- Run | Yrd Mat Total 854 | 135 719 Wait 36 | 5 31 Move 682 | 112 570 Hop . | . . Pick Up 28 | 8 20 Fast Attach . | . . Attach 12 | 6 6 Detach 1 | . 1 Swap 9 | . 9 Drop 12 | . 12 Fire 72 | 4 68 Melee . | . . Ram 2 | . 2 Kick . | . . Crush . | . . Escape Stasis . | . . Rewire . | . . Trap . | . . Miscellaneous . | . . Route ------- -11/Scrapyard -10/Materials (discovered 1 exit: [*Min]) History --------- Turn | Location | Event 2 | -11/Scrapyard | Met Revision 17 84 | -11/Scrapyard | Discovered new exit (range 8) 108 | -11/Scrapyard | Entered Materials 306 | -10/Materials | Build established: Mutant 364 | -10/Materials | Discovered new exit (range 5) 497 | -10/Materials | Core integrity fell below 50% 529 | -10/Materials | Lost 4 parts (1p2n1w) 826 | -10/Materials | Core integrity fell below 20% 834 | -10/Materials | Destroyed by G-47 Trooper with Particle Gun Last Messages --------------- W-16 Scout sends out distress signal. Acquired Huge Storage Unit. Dropped Med. Storage Unit. Dropped Propulsion Shielding. G-34 Mercenary destroyed. Switching to secondary target: G-34 Mercenary. G-34 Mercenary destroyed. Critical hit (Burn: +37). Lgt. Armor Plating destroyed. Wheel destroyed. O-16 Technician uses terminal to summon reinforcements. ALERT: Hostiles spotted, dispatching reinforcements to Terminal M007. O-16 Technician locks terminal. Wheel destroyed. K-01 Serf collects debris. G-34 Mercenary destroyed. Switching to secondary target: G-47 Trooper. K-01 Serf collects debris. Map ----- +----------------------------------------------------+ | ????????###+#######+#############+### ###??????? | | ????????# = ! # #??????? | | ????????# [%=!!!! =#?????## | | ????????# """ =%**! !!= # #?????# | | ????????# """ ###################+#####????# | | ????????# """ # ??????????# #????#= | | ???###### # #?????????# #????# | | ? ## #??????????# #????# | | ? """" ## # #??????????# #????# | | # """" # ####??????????# ! #????## | | # """" # #########?????# * | #?????? | | # # [[[ #?????# #??#### | | # """" # [[[ #?????# ! !=#??# | | # """" + [[ #?????###########??# | | # """" # #??????????????????# | | # # #??????????????????# | | # "" ##########+###### #??????????????????# | | # "T !#??????? ?# #??????????????????# | | # "" #????? """ ?# #??????????????????# | | # *#???"Y ! """ # #??????????????????# | | ########??#"" """ * # ![#??????????????????# | | ??????????# +=k*#??????????????????###+ | | ??????????####/##########/#######?????######### | | ?????????????# ???# =%=! #?????# | | ????????????? ???# [=** = #?????# T | | ????????????? ????# =@ #?????+ | | ??????????????????# !! !!! #?????# ##### | | ??????????????????# g!! #?????# ?????#### | | ??????????????????# !! o #?????#??????????? | | ??????????????????##+######"T"###????????????????? | | ??????????????????? ??????####??????????????????? | | ?????????????????? ?????????????????????????????? | | ????????????????? ?????????????????????????????? | | ???????????????? ??????????????????????????????? | | ??????????????? ##??????????????????????????????? | | ?????????????? ????????????????????????????????? | | ?????????????+ ?????????????????????????????????? | | ?????????????# ????????????????????????^^^???????? | | ?????????????# ??????????????????????????????????? | | ?????????????????????????????????????????????????? | | ?????????????????????????????????????????????????? | | ?????????????????????????????????????????????????? | | ?????????????????????????????????????????????????? | | ?????????????????????????????????????????????????? | | ?????????????????????????????????????????????????? | | ?????????????????????????????????????????????????? | | ?????????????????????????????????????????????????? | | ?????????????????????????????????????????????????? | | ?????????????????????????????????????????????????? | | ?????????????????????????????????????????????????? | +----------------------------------------------------+ Best States ------------- Heat Dissipation 35 Energy Generation 10 Energy Capacity 250 Matter Stores 300 Matter Capacity 300 Sight Range 16 Terrain Scan Density 10 Armor Coverage 150 Evasion (%) 50 Targeting Accuracy 5 Item Schematics ----------------- None Robot Schematics ------------------ None Fabricated ------------ Nothing Alien Tech Used ----------------- None Achievements -------------- None Challenges ------------ None Game ------ Seed MetafieldVisualWheel Manual? 0 Play Time 00:23:00 Cumulative 0.3 hours Start 2024.04.03 @ 04:43:31 End 2024.04.03 @ 05:07:11 Sessions 1 Manual Loads 0 Difficulty Rogue Special Mode None Game No. 1 Rogue 1 Adventurer 0 Explorer 0 Win Type - Total 0 Types 0/0/0/0/0/0/0/0/0 Lore% 0 Gallery% 1 Achievement% 6 Wizard Run 0 Options --------- Layout 1 ASCII 0 Keyboard 1 Movement Numpad Keybinds 0 Fullscreen 1 Font 24/Smallcaps Map View 50x35 Zoom Use 0% Tactical HUD 0 Map Filters NONE Filters NONE Steam 1 RUN: a0246ede-a819-4311-abb2-033c6ddc1477